{"text_format":"1","workbook":"xlsx","n_sheets":11,"sheets":["Est. Gral","V.V","Auto.","Gpo. Vul.","Salt.","Torr.","PN","Mva.","Acu.","Sab.","Solicitudes de Inter."],"not_rendered":{"charts":0,"images":1,"macros":0,"external_links":0,"defined_names":0,"comments":0,"pivot_tables":0},"unopened":[],"bounds":{"document_bytes":16777216,"sheet_cells":100000,"rows_first":2000,"rows_last":500,"rows_between":2000,"halvings":0,"cell_chars":16384,"cell_head_chars":4096},"cells_cut":0,"cells_raw":0,"read":"whole","date_system":"1900"}

{"sheet":"Est. Gral","index":0,"n_rows":31,"n_cols":17,"rows_kept":31,"cut":false,"hidden":false,"merged":[[0,2,0,8],[1,2,1,8],[2,2,2,8],[3,2,3,8],[12,0,23,0]]}
[null,null,"Comisión de los Derechos Humanos del Estado de Coahuila de Zaragoza "]
[null,null,"Visitaduría General "]
[]
[null,null,"2014-02-28"]
[null,"Visitadurías Regionales ","Saltillo ","Torreón ","Piedras Negras ","Monclova ","Acuña ","Sabinas ","TOTAL "]
[null,"Asesorías ",136,413,83,150,0,3,{"$f":"SUM(C6:H6)","v":785}]
[null,"Gestorías ",0,0,0,0,0,0,0]
[null,"Quejas ptes. De concluir  2013",90,107,12,13,28,8,{"$f":"SUM(C8:H8)","v":258}]
[null,"Quejas 2014",{"$f":"SUM(C10:C11)","v":81},{"$f":"SUM(D10:D11)","v":78},{"$f":"SUM(E10:E11)","v":27},55,15,{"$f":"SUM(H10:H11)","v":12},268,null,null,null,null,null,null,null," "]
[null,"Admitidas ",67,69,22,38,13,11,{"$f":"SUM(C10:H10)","v":220}]
[null,"Remisiones CNDH",14,9,5,17,2,1,{"$f":"SUM(C11:H11)","v":48}]
[null,"Concluidas "]
["Causas de Conclusión ","Incompetencia",null,1]
[null,"Falta de interés "]
[null,"Conciliación "]
[null,"Acumulación "]
[null,"No se acreditan los hechos ",null,2]
[null,"Resuletas durante el procedimiento ",null,2]
[null,"Desistimiento ",1,2,null,null,1]
[null,"Sin materia "]
[null,"Acuerdo de no responsabilidad "]
[null,"No localizacion "]
[null,"Hechos no violatorios "]
[null,"Recomendaciones ",1,2,null,null,null,null,{"$f":"SUM(C24:H24)","v":3}]
[null,"Trámite ",{"$f":"SUM(C8+C10-C19)","v":156},{"$f":"SUM(D8+D10-D15-D17-D18-D19-D13)","v":169},{"$f":"SUM(E8+E10)","v":34},51,{"$f":"SUM(G8+G10-G19)","v":40},19,478]
[]
[]
[]
[null,2012,null,1]
[null,null,null,170]
[null,null,"81 VISITAS DE INCLUSIÓN"]

{"sheet":"V.V","index":1,"n_rows":31,"n_cols":8,"rows_kept":31,"cut":false,"hidden":false,"merged":[[0,1,0,7],[1,1,1,7],[2,1,2,7]]}
[null,"Comisión de los Derechos Humanos del Estado de Coahuila de Zaragoza "]
[null,"Visitaduría General "]
[null,"Estadística Enero "]
[]
["Voces de Violación","Saltillo ","Torreón ","Piedras Negras ","Monclova ","Acuña ","Sabinas ","TOTAL "]
["Detencion arbitraria "]
["Prest. Indeb. De Serv. Púb."]
["Trato cruel, Inhumano o dregradante "]
["Lesiones"]
["Allanamiento "]
["Irregularidad en la Integ. De la Averig. Previa Penal"]
["Robo "]
["Ej. Inde. Fza. Púb."]
["Derecho a la Edución "]
["Amenazas "]
["Dilación en Proc. De Just."]
["Derecho a la Salud "]
["Falsas acusación "]
["Incump. Inadecuado de la negativa pública en mat. De procuración"]
["Intimidación "]
["Derechos de los Niños "]
["Derecho de la Petición "]
["Desaparición Forzada "]
["Denegación de Justicia "]
["Discapacidad "]
["Discriminación "]
["Incomunicación "]
["D. menores a que se prosesa su integridad "]
["Tortura "]
["Retención ilegal "]
["Otros "]

{"sheet":"Auto.","index":2,"n_rows":14,"n_cols":8,"rows_kept":14,"cut":false,"hidden":false,"merged":[[0,1,0,7],[1,1,1,7],[2,1,2,7]]}
[null,"Comisión de los Derechos Humanos del Estado de Coahuila de Zaragoza "]
[null,"Visitaduría General "]
[null,"Estadística Enero - Noviembre 2013"]
[]
["Autoridades ","Saltillo ","Torreón ","Piedras Negras ","Monclova ","Acuña ","Sabinas ","TOTAL "]
["Policía Preventiva Municipal "]
["PGJE "]
["SSP-CES"]
["Secretaría de Edu."]
["Procuraduría de la Fam."]
["Secretaría de Salud"]
["Dir. Reinserción Estatales  "]
["Otros Autoridades Estatales "]
["Otros Autoridades Municipales "]

{"sheet":"Gpo. Vul.","index":3,"n_rows":18,"n_cols":8,"rows_kept":18,"cut":false,"hidden":false,"merged":[[0,1,0,7],[1,1,1,7],[2,1,2,7]]}
[null,"Comisión de los Derechos Humanos del Estado de Coahuila de Zaragoza "]
[null,"Visitaduría General "]
[null,"Estadística Noviembre 2013"]
[]
["Autoridades ","Saltillo ","Torreón ","Piedras Negras ","Monclova ","Acuña ","Sabinas ","TOTAL "]
["Mujer"]
["Hombre"]
["Niños"]
["Jóvenes"]
["Adultos Mayores"]
["Personas con discapacidad"]
["Servidores Públicos"]
["Migrantes"]
["Preferencial Sexual Diferente"]
["Indígenas"]
["Interno"]
["Defensor Civil de D.H"]
["Periódista"]

{"sheet":"Salt.","index":4,"n_rows":75,"n_cols":33,"rows_kept":75,"cut":false,"hidden":false,"merged":[[0,1,0,20],[61,0,61,32],[1,1,1,7],[2,1,2,7],[24,0,24,32],[51,0,51,32]]}
[null,"Comisión de los Derechos Humanos del Estado de Coahuila de Zaragoza "]
[null,"Visitaduría General "]
[null,"Estadística Diciembre 2013"]
[]
["Visitadurías Regionales ","Saltillo ",1,2,3,4,5,6,7,8,9,10,11,12,13,14,15,16,18,19,20,21,22,23,24,25,26,27,28,29,30,31]
["Asesorías ",{"$f":"SUM(C6:AG6)","v":0}]
["Gestorías ",{"$f":"SUM(C7:AG7)","v":0}]
["Quejas 2013",{"$f":"SUM(B9:B10)","v":0}]
["Admitidas ",0]
["Remisiones CNDH",{"$f":"SUM(C10:AG10)","v":0}]
["Concluidas ",{"$f":"SUM(C11:AG11)","v":0}]
["Incompetencia",{"$f":"SUM(C12:AG12)","v":0}]
["Falta de interés ",0]
["Conciliación ",0]
["Acumulación ",0]
["No se acreditan los hechos ",0]
["Resueltas durante el procedimiento ",0]
["Desistimiento ",0]
["Sin materia ",0]
["Acuerdo de no responsabilidad ",0]
["No localizacion ",0]
["Hechos no violatorios ",0]
["Recomendaciones ",0]
["Trámite ",0,{"$f":"C9-C11","v":0},0,0,0,0,0,0,0,0,0,0,0,0,0,0,0,0,0,0,0,0,0,0,0,0,0,0,0,0,0,0]
["Voces de Violación"]
["Detencion arbitraria ",{"$f":"SUM(C26:AG26)","v":0}]
["Prest. Indeb. De Serv. Púb.",0]
["Trato cruel, Inhumano o dregradante ",0]
["Lesiones",0]
["Allanamiento ",0]
["Irregularidad en la Integ. De la averig. Previa Penal",0]
["Robo ",0]
["Ej. Inde. Fza. Púb.",0]
["Derecho a la Edución ",0]
["Amenazas ",0]
["Dilación en Proc. De Just.",0]
["Derecho a la Salud ",0]
["Falsas acusación ",0]
["Incump. Inadecuado de la negativa pública en mat. De procuración",0]
["Intimidación ",0]
["Derechos de los Niños ",0]
["Derecho de la Petición ",2,null,null,null,1,1]
["Desaparición Forzada ",0]
["Denegación de Justicia ",0]
["Discapacidad ",0]
["Discriminación ",0]
["Incomunicación ",0]
["D. menores a que se procesa su integridad ",0]
["Tortura ",0]
["Retención ilegal ",0]
["Otros ",{"$f":"SUM(C51:AG51)","v":0}]
["Autoridades"]
["Policía Preventiva Municipal ",{"$f":"SUM(C53:AG53)","v":0}]
["PGJE ",0]
["SSP-CES",0]
["Secretaría de Edu.",0]
["Procuraduría de la Fam.",0]
["Secretaría de Salud",0]
["Dir. Reinserción Estatales  ",0]
["Otros Autoridades Estatales ",0]
["Otros Autoridades Municipales ",0]
["Grupo Vulnerable"]
["Mujer",{"$f":"SUM(C63:AG63)","v":0}]
["Hombre",0]
["Niños",0]
["Jóvenes",0]
["Adultos Mayores",0]
["Personas con discapacidad",0]
["Servidores Públicos",0]
["Migrantes",0]
["Preferencial Sexual Diferente",0]
["Indígenas",{"$f":"SUM(C72:AG72)","v":0}]
["Interno",{"$f":"SUM(C73:AG73)","v":0}]
["Defensor Civil de D.H",{"$f":"SUM(C74:AG74)","v":0}]
["Periódista",{"$f":"SUM(C75:AG75)","v":0}]

{"sheet":"Torr.","index":5,"n_rows":75,"n_cols":33,"rows_kept":75,"cut":false,"hidden":false,"merged":[[0,1,0,20],[61,0,61,32],[1,1,1,7],[2,1,2,7],[24,0,24,32],[51,0,51,32]]}
[null,"Comisión de los Derechos Humanos del Estado de Coahuila de Zaragoza "]
[null,"Visitaduría General "]
[null,"Estadística Diciembre 2013"]
[]
["Visitadurías Regionales ","Torreón",1,2,3,4,5,6,7,8,9,10,11,12,13,14,15,16,17,18,19,20,21,22,23,24,25,26,27,28,29,30,31]
["Asesorías ",{"$f":"SUM(C6:AG6)","v":22},null,13,9]
["Gestorías ",{"$f":"SUM(C7:AG7)","v":0}]
["Quejas 2013",11,{"$f":"C9+C10","v":0},{"$f":"D9+D10","v":1},10]
["Admitidas ",11,null,1,10]
["Remisiones CNDH",0]
["Concluidas ",{"$f":"SUM(C11:AG11)","v":0},{"$f":"SUM(C12:C23)","v":0},{"$f":"SUM(D12:D23)","v":0},0]
["Incompetencia",{"$f":"SUM(C12:AG12)","v":0}]
["Falta de interés ",0]
["Conciliación ",0]
["Acumulación ",0]
["No se acreditan los hechos ",0]
["Resueltas durante el procedimiento ",0]
["Desistimiento ",0]
["Sin materia ",0]
["Acuerdo de no responsabilidad ",0]
["No localizacion ",0]
["Hechos no violatorios ",0]
["Recomendaciones ",0]
["Trámite ",11,{"$f":"C9-C11","v":0},1,10]
["Voces de Violación"]
["Detencion arbitraria ",{"$f":"SUM(C26:AG26)","v":1},null,null,1]
["Prest. Indeb. De Serv. Púb.",5,null,1,4]
["Trato cruel, Inhumano o dregradante ",2,null,null,2]
["Lesiones",0]
["Allanamiento ",0]
["Irregularidad en la Integ. De la averig. Previa Penal",2,null,null,2]
["Robo ",1,null,null,1]
["Ej. Inde. Fza. Púb.",0]
["Derecho a la Edución ",0]
["Amenazas ",0]
["Dilación en Proc. De Just.",2,null,null,2]
["Derecho a la Salud ",0]
["Falsas acusación ",1,null,null,1]
["Incump. Inadecuado de la negativa pública en mat. De procuración",0]
["Intimidación ",0]
["Derechos de los Niños ",0]
["Derecho de la Petición ",0]
["Desaparición Forzada ",0]
["Denegación de Justicia ",1,null,null,1]
["Discapacidad ",0]
["Discriminación ",0]
["Incomunicación ",0]
["D. menores a que se procesa su integridad ",0]
["Tortura ",0]
["Retención ilegal ",0]
["Otros ",6,null,1,5]
["Autoridades"]
["Policía Preventiva Municipal ",{"$f":"SUM(C53:AG53)","v":1},null,null,1]
["PGJE ",7,null,null,7]
["SSP-CES",1,null,null,1]
["Secretaría de Edu.",0]
["Procuraduría de la Fam.",0]
["Secretaría de Salud",0]
["Dir. Reinserción Estatales  ",1,null,null,1]
["Otros Autoridades Estatales ",2,null,null,2]
["Otros Autoridades Municipales ",1,null,1]
["Grupo Vulnerable"]
["Mujer",{"$f":"SUM(C63:AG63)","v":1},null,null,1]
["Hombre",6,null,1,5]
["Niños",0]
["Jóvenes",0]
["Adultos Mayores",0]
["Personas con discapacidad",0]
["Servidores Públicos",0]
["Migrantes",0]
["Preferencial Sexual Diferente",0]
["Indígenas",0]
["Interno",2,null,null,2]
["Defensor Civil de D.H",2,null,null,2]
["Periódista",0]

{"sheet":"PN","index":6,"n_rows":75,"n_cols":33,"rows_kept":75,"cut":false,"hidden":false,"merged":[[0,1,0,20],[61,0,61,32],[1,1,1,7],[2,1,2,7],[24,0,24,32],[51,0,51,32]]}
[null,"Comisión de los Derechos Humanos del Estado de Coahuila de Zaragoza "]
[null,"Visitaduría General "]
[null,"Estadística Diciembre 2013"]
[]
["Visitadurías Regionales ","Piedras Nedras",1,2,3,4,5,6,7,8,9,10,11,12,13,14,15,16,17,18,19,20,21,22,23,24,25,26,27,28,29,30,31]
["Asesorías ",{"$f":"SUM(C6:AG6)","v":20},null,4,0,null,null,null,null,null,null,null,null,null,null,null,null,null,null,7,4,5]
["Gestorías ",{"$f":"SUM(C7:AG7)","v":0}]
["Quejas 2013",5,{"$f":"C9+C10","v":0},{"$f":"D9+D10","v":2},0,0,0,0,0,0,0,0,0,0,0,0,0,0,0,0,0,0,0,0,3,0,0,0,0,0,0,0,0]
["Admitidas ",5,null,2,null,null,null,null,null,null,null,null,null,null,null,null,null,null,null,null,null,null,null,null,3]
["Remisiones CNDH",0]
["Concluidas ",{"$f":"SUM(C11:AG11)","v":0},{"$f":"SUM(C12:C23)","v":0},{"$f":"SUM(D12:D23)","v":0},0,0,0,0,0,0,0,0,0,0,0,0,0,0,0,0,0,0,0,0,0,0,0,0,0,0,0,0,0]
["Incompetencia",{"$f":"SUM(C12:AG12)","v":0}]
["Falta de interés ",0]
["Conciliación ",0]
["Acumulación ",0]
["No se acreditan los hechos ",0]
["Resueltas durante el procedimiento ",0]
["Desistimiento ",0]
["Sin materia ",0]
["Acuerdo de no responsabilidad ",0]
["No localizacion ",0]
["Hechos no violatorios ",0]
["Recomendaciones ",0]
["Trámite ",5,{"$f":"C9-C11","v":0},2,0,0,0,0,0,0,0,0,0,0,0,0,0,0,0,0,0,0,0,0,3,0,0,0,0,0,0,0,0]
["Voces de Violación"]
["Detencion arbitraria ",{"$f":"SUM(C26:AG26)","v":0}]
["Prest. Indeb. De Serv. Púb.",0]
["Trato cruel, Inhumano o dregradante ",0]
["Lesiones",0]
["Allanamiento ",0]
["Irregularidad en la Integ. De la averig. Previa Penal",0]
["Robo ",0]
["Ej. Inde. Fza. Púb.",0]
["Derecho a la Edución ",1,null,1]
["Amenazas ",0]
["Dilación en Proc. De Just.",0]
["Derecho a la Salud ",0]
["Falsas acusación ",0]
["Incump. Inadecuado de la negativa pública en mat. De procuración",0]
["Intimidación ",0]
["Derechos de los Niños ",0]
["Derecho de la Petición ",0]
["Desaparición Forzada ",0]
["Derecho a la Seguridad Jurídica",1,null,1]
["Discapacidad ",0]
["Discriminación ",0]
["Incomunicación ",0]
["D. menores a que se procesa su integridad ",0]
["Tortura ",0]
["Retención ilegal ",0]
["Otros ",0]
["Autoridades"]
["Policía Preventiva Municipal ",{"$f":"SUM(C53:AG53)","v":0}]
["PGJE ",1,null,1]
["SSP-CES",0]
["Secretaría de Edu.",1,null,1]
["Procuraduría de la Fam.",0]
["Secretaría de Salud",0]
["Dir. Reinserción Estatales  ",0]
["Otros Autoridades Estatales ",0]
["Otros Autoridades Municipales ",0]
["Grupo Vulnerable"]
["Mujer",{"$f":"SUM(C63:AG63)","v":0}]
["Hombre",1,null,1]
["Niños",0]
["Jóvenes",2,null,2]
["Adultos Mayores",0]
["Personas con discapacidad",0]
["Servidores Públicos",0]
["Migrantes",0]
["Preferencial Sexual Diferente",0]
["Indígenas",0]
["Interno",0]
["Defensor Civil de D.H",0]
["Periódista",0]

{"sheet":"Mva.","index":7,"n_rows":75,"n_cols":33,"rows_kept":75,"cut":false,"hidden":false,"merged":[[0,1,0,20],[61,0,61,32],[1,1,1,7],[2,1,2,7],[24,0,24,32],[51,0,51,32]]}
[null,"Comisión de los Derechos Humanos del Estado de Coahuila de Zaragoza "]
[null,"Visitaduría General "]
[null,"Estadística Diciembre 2013"]
[]
["Visitadurías Regionales ","Monclova",1,2,3,4,5,6,7,8,9,10,11,12,13,14,15,16,17,18,19,20,21,22,23,24,25,26,27,28,29,30,31]
["Asesorías ",{"$f":"SUM(C6:AG6)","v":107},null,7,6,5,6,8,null,null,5,4,4,5,6,null,null,7,6,5,9,13,null,null,3,2,null,4,2]
["Gestorías ",0]
["Quejas 2013",13,{"$f":"C9+C10","v":0},{"$f":"D9+D10","v":0},3,0,0,0,0,0,0,0,0,0,0,0,0,4,0,0,4,0,0,0,2,0,0,0,0,0,0,0,0]
["Admitidas ",10,null,null,2,null,null,null,null,null,null,null,null,null,null,null,null,4,null,null,2,null,null,null,2]
["Remisiones CNDH",3,null,null,1,null,null,null,null,null,null,null,null,null,null,null,null,null,null,null,2]
["Concluidas ",1,{"$f":"SUM(C12:C23)","v":0},{"$f":"SUM(D12:D23)","v":0},1,0,0,0,0,0,0,0,0,0,0,0,0,0,0,0,0,0,0,0,0,0,0,0,0,0,0,0,0]
["Incompetencia",1,null,null,1]
["Falta de interés ",0]
["Conciliación ",0]
["Acumulación ",0]
["No se acreditan los hechos ",0]
["Resueltas durante el procedimiento ",0]
["Desistimiento ",0]
["Sin materia ",0]
["Acuerdo de no responsabilidad ",0]
["No localizacion ",0]
["Hechos no violatorios ",0]
["Recomendaciones ",0]
["Trámite ",9,{"$f":"C9-C11","v":0},0,1,0,0,0,0,0,0,0,0,0,0,0,0,4,0,0,2,0,0,0,2,0,0,0,0,0,0,0,0]
["Voces de Violación"]
["Detencion arbitraria ",{"$f":"SUM(C26:AG26)","v":0}]
["Prest. Indeb. De Serv. Púb.",1,null,null,1]
["Trato cruel, Inhumano o dregradante ",0]
["Lesiones",0]
["Allanamiento ",0]
["Irregularidad en la Integ. De la averig. Previa Penal",0]
["Robo ",0]
["Ej. Inde. Fza. Púb.",0]
["Derecho a la Edución ",0]
["Amenazas ",0]
["Dilación en Proc. De Just.",0]
["Derecho a la Salud ",0]
["Falsas acusación ",0]
["Incump. Inadecuado de la negativa pública en mat. De procuración",0]
["Intimidación ",1,null,null,1]
["Derechos de los Niños ",0]
["Derecho de la Petición ",0]
["Desaparición Forzada ",0]
["Derecho a la Seguridad Jurídica",0]
["Discapacidad ",0]
["Discriminación ",0]
["Incomunicación ",0]
["D. menores a que se procesa su integridad ",0]
["Tortura ",0]
["Retención ilegal ",0]
["Otros ",1,null,null,1]
["Autoridades"]
["Policía Preventiva Municipal ",{"$f":"SUM(C53:AG53)","v":0}]
["PGJE ",0]
["SSP-CES",0]
["Secretaría de Edu.",0]
["Procuraduría de la Fam.",0]
["Secretaría de Salud",0]
["Dir. Reinserción Estatales  ",0]
["Otros Autoridades Estatales ",0]
["Otros Autoridades Municipales ",1,null,null,1]
["Grupo Vulnerable"]
["Mujer",{"$f":"SUM(C63:AG63)","v":0}]
["Hombre",1,null,null,1]
["Niños",0]
["Jóvenes",0]
["Adultos Mayores",0]
["Personas con discapacidad",0]
["Servidores Públicos",0]
["Migrantes",0]
["Preferencial Sexual Diferente",0]
["Indígenas",0]
["Interno",0]
["Defensor Civil de D.H",0]
["Periódista",0]

{"sheet":"Acu.","index":8,"n_rows":75,"n_cols":33,"rows_kept":75,"cut":false,"hidden":false,"merged":[[0,1,0,20],[61,0,61,32],[1,1,1,7],[2,1,2,7],[24,0,24,32],[51,0,51,32]]}
[null,"Comisión de los Derechos Humanos del Estado de Coahuila de Zaragoza "]
[null,"Visitaduría General "]
[null,"Estadística Diciembre 2013"]
[]
["Visitadurías Regionales ","Piedras Nedras",1,2,3,4,5,6,7,8,9,10,11,12,13,14,15,16,17,18,19,20,21,22,23,24,25,26,27,28,29,30,31]
["Asesorías ",{"$f":"SUM(C6:AG6)","v":0}]
["Gestorías ",{"$f":"SUM(C7:AG7)","v":0}]
["Quejas 2013",4,{"$f":"C9+C10","v":0},{"$f":"D9+D10","v":0},0,0,0,0,0,0,0,0,0,0,0,0,0,0,0,0,0,0,0,0,4,0,0,0,0,0,0,0,0]
["Admitidas ",4,null,null,null,null,null,null,null,null,null,null,null,null,null,null,null,null,null,null,null,null,null,null,4]
["Remisiones CNDH",0]
["Concluidas ",{"$f":"SUM(C11:AG11)","v":5},{"$f":"SUM(C12:C23)","v":0},{"$f":"SUM(D12:D23)","v":0},0,0,0,1,0,0,0,0,0,0,0,0,0,0,0,0,0,4,0,0,0,0,0,0,0,0,0,0,0]
["Incompetencia",{"$f":"SUM(C12:AG12)","v":0}]
["Falta de interés ",2,null,null,null,null,null,null,null,null,null,null,null,null,null,null,null,null,null,null,null,2]
["Conciliación ",0]
["Acumulación ",0]
["No se acreditan los hechos ",0]
["Resueltas durante el procedimiento ",2,null,null,null,null,null,1,null,null,null,null,null,null,null,null,null,null,null,null,null,1]
["Desistimiento ",1,null,null,null,null,null,null,null,null,null,null,null,null,null,null,null,null,null,null,null,1]
["Sin materia ",0]
["Acuerdo de no responsabilidad ",0]
["No localizacion ",0]
["Hechos no violatorios ",0]
["Recomendaciones ",0]
["Trámite ",-1,{"$f":"C9-C11","v":0},0,0,0,0,-1,0,0,0,0,0,0,0,0,0,0,0,0,0,-4,0,0,4,0,0,0,0,0,0,0,0]
["Voces de Violación"]
["Detencion arbitraria ",{"$f":"SUM(C26:AG26)","v":0}]
["Prest. Indeb. De Serv. Púb.",0]
["Trato cruel, Inhumano o dregradante ",0]
["Lesiones",0]
["Allanamiento ",0]
["Irregularidad en la Integ. De la averig. Previa Penal",0]
["Robo ",0]
["Ej. Inde. Fza. Púb.",0]
["Derecho a la Edución ",0]
["Amenazas ",0]
["Dilación en Proc. De Just.",0]
["Derecho a la Salud ",0]
["Falsas acusación ",0]
["Incump. Inadecuado de la negativa pública en mat. De procuración",0]
["Intimidación ",0]
["Derechos de los Niños ",0]
["Derecho de la Petición ",0]
["Desaparición Forzada ",0]
["Derecho a la Seguridad Jurídica",0]
["Discapacidad ",0]
["Discriminación ",0]
["Incomunicación ",0]
["D. menores a que se procesa su integridad ",0]
["Tortura ",0]
["Retención ilegal ",0]
["Otros ",0]
["Autoridades"]
["Policía Preventiva Municipal ",{"$f":"SUM(C53:AG53)","v":0}]
["PGJE ",0]
["SSP-CES",0]
["Secretaría de Edu.",0]
["Procuraduría de la Fam.",0]
["Secretaría de Salud",0]
["Dir. Reinserción Estatales  ",0]
["Otros Autoridades Estatales ",0]
["Otros Autoridades Municipales ",0]
["Grupo Vulnerable"]
["Mujer",{"$f":"SUM(C63:AG63)","v":0}]
["Hombre",0]
["Niños",0]
["Jóvenes",0]
["Adultos Mayores",0]
["Personas con discapacidad",0]
["Servidores Públicos",0]
["Migrantes",0]
["Preferencial Sexual Diferente",0]
["Indígenas",0]
["Interno",0]
["Defensor Civil de D.H",0]
["Periódista",0]

{"sheet":"Sab.","index":9,"n_rows":75,"n_cols":33,"rows_kept":75,"cut":false,"hidden":false,"merged":[[0,1,0,20],[61,0,61,32],[1,1,1,7],[2,1,2,7],[24,0,24,32],[51,0,51,32]]}
[null,"Comisión de los Derechos Humanos del Estado de Coahuila de Zaragoza "]
[null,"Visitaduría General "]
[null,"Estadística Diciembre 2013"]
[]
["Visitadurías Regionales ","Piedras Nedras",1,2,3,4,5,6,7,8,9,10,11,12,13,14,15,16,17,18,19,20,21,22,23,24,25,26,27,28,29,30,31]
["Asesorías ",{"$f":"SUM(C6:AG6)","v":0}]
["Gestorías ",0]
["Quejas 2013",7,{"$f":"C9+C10","v":0},{"$f":"D9+D10","v":0},0,0,0,0,0,0,0,0,0,0,0,0,0,4,0,0,0,0,0,0,3,0,0,0,0,0,0,0,0]
["Admitidas ",6,null,null,null,null,null,null,null,null,null,null,null,null,null,null,null,3,null,null,null,null,null,null,3]
["Remisiones CNDH",1,null,null,null,null,null,null,null,null,null,null,null,null,null,null,null,1]
["Concluidas ",1,{"$f":"SUM(C12:C23)","v":0},{"$f":"SUM(D12:D23)","v":0},0,0,0,0,0,0,0,0,0,0,0,0,0,1,0,0,0,0,0,0,0,0,0,0,0,0,0,0,0]
["Incompetencia",1,null,null,null,null,null,null,null,null,null,null,null,null,null,null,null,1]
["Falta de interés ",0]
["Conciliación ",0]
["Acumulación ",0]
["No se acreditan los hechos ",0]
["Resueltas durante el procedimiento ",0]
["Desistimiento ",0]
["Sin materia ",0]
["Acuerdo de no responsabilidad ",0]
["No localizacion ",0]
["Hechos no violatorios ",0]
["Recomendaciones ",0]
["Trámite ",5,{"$f":"C9-C11","v":0},0,0,0,0,0,0,0,0,0,0,0,0,0,0,2,0,0,0,0,0,0,3,0,0,0,0,0,0,0,0]
["Voces de Violación"]
["Detencion arbitraria ",{"$f":"SUM(C26:AG26)","v":0}]
["Prest. Indeb. De Serv. Púb.",0]
["Trato cruel, Inhumano o dregradante ",2,null,null,null,null,null,null,null,null,null,null,null,null,null,null,null,2]
["Lesiones",0]
["Allanamiento ",0]
["Irreg. Inter. A.P.P.",0]
["Robo ",0]
["Ej. Inde. Fza. Púb.",0]
["Derecho a la Edución ",1,null,null,null,null,null,null,null,null,null,null,null,null,null,null,null,1]
["Amenazas ",0]
["Dilación en Proc. De Just.",2,null,null,null,null,null,null,null,null,null,null,null,null,null,null,null,2]
["Derecho a la Salud ",0]
["Falsas acusación ",0]
["Incump. i/n pub. Mat. De procuración ",0]
["Intimidación ",0]
["Derechos de los Niños ",0]
["Derecho de la Petición ",0]
["Desaparición Forzada ",0]
["Derecho a la Seguridad Jurídica",0]
["Discapacidad ",0]
["Discriminación ",0]
["Incomunicación ",0]
["D. menores a que se procesa su integridad ",0]
["Tortura ",0]
["Retención ilegal ",0]
["Otros ",2,null,null,null,null,null,null,null,null,null,null,null,null,null,null,null,2]
["Autoridades"]
["Policía Preventiva Municipal ",{"$f":"SUM(C53:AG53)","v":0}]
["PGJE ",0]
["SSP-CES",0]
["Secretaría de Edu.",1,null,null,null,null,null,null,null,null,null,null,null,null,null,null,null,1]
["Procuraduría de la Fam.",0]
["Secretaría de Salud",0]
["Dir. Reinserción Estatales  ",0]
["Otros Autoridades Estatales ",0]
["Otros Autoridades Municipales ",2,null,null,null,null,null,null,null,null,null,null,null,null,null,null,null,2]
["Grupo Vulnerable"]
["Mujer",{"$f":"SUM(C63:AG63)","v":0}]
["Hombre",0]
["Niños",1,null,null,null,null,null,null,null,null,null,null,null,null,null,null,null,1]
["Jóvenes",2,null,null,null,null,null,null,null,null,null,null,null,null,null,null,null,2]
["Adultos Mayores",0]
["Personas con discapacidad",0]
["Servidores Públicos",0]
["Migrantes",0]
["Preferencial Sexual Diferente",0]
["Indígenas",0]
["Interno",0]
["Defensor Civil de D.H",0]
["Periódista",0]

{"sheet":"Solicitudes de Inter.","index":10,"n_rows":8,"n_cols":8,"rows_kept":8,"cut":false,"hidden":false,"merged":[[0,1,0,7],[1,1,1,7],[2,1,2,7]]}
[null,"Comisión de los Derechos Humanos del Estado de Coahuila de Zaragoza "]
[null,"Visitaduría General "]
[null,"Estadística Enero - Octubre 2013"]
[]
["Solicitudes de Intervención ","Saltillo ","Torreón ","Piedras Negras ","Monclova ","Acuña ","Sabinas ","TOTAL "]
["Asesorías ",84,122,81,78,0,3,{"$f":"SUM(B6:G6)","v":368}]
["Gestorías ",0,0,0,0,0,0,0]
["Quejas 2013"]